Workbook

Sheet Design
A3: About | C3: xx | H3: = Input Box | K3: TERMS OF USE
B6: Step 1: Operating Specifications
F7: Input Voltage – Min, VSUPPLY(min) | G7: 24 | H7: V
F8: Input Voltage – Typ, VSUPPLY(typ) | G8: 24 | H8: V
F9: Input Voltage – Max, VSUPPLY(max) | G9: 24 | H9: V
F10: Output Voltage, VLOAD | G10: 15 | H10: V
F11: Full Load Output Current, ILOAD | G11: 12 | H11: A
F12: Switching Frequency, fSW | G12: 2200 | H12: kHz
F13: Frequency Set Resistor, RRT | G13: =Calculation!C40 -> 6.81 | H13: kΩ
B15: Step 2: User's Selections
F16: Device Selection | G16: LM(Q)644A2(-Q1)
F17: Number of Phase | G17: 4-Phase (2 devices)
F18: Switching Mode | G18: AUTO
F19: Output Voltage Feedback | G19: External
F20: Spread Spectrum | G20: Enable
F21: External Clock Synchronization | G21: No
F22: CFG Resistor (Primary Device) | G22: =Calculation!C34 -> 73.2 | H22: kΩ
F23: =IF(OR(PH=1,PH=2),"","CFG Resistor (Secondary Device)") -> CFG Resistor (Secondary Device) | G23: =IF(OR(PH=1,PH=2),"",Calculation!C35) -> 41.2 | H23: =IF(OR(PH=1,PH=2),"","kΩ") -> kΩ
B25: Step 3: Buck Inductor
F26: Inductance for 35% Ripple Current at VIN(nom) | G26: =L.out_typical_calc*10^6 -> 2.435064935 | H26: µH
F27: Minimum Inductance | G27: =L.out_min*10^6 -> 1.162190083 | H27: µH
F28: Buck Inductance, LOUT | G28: 1.5 | H28: µH
F29: Inductor DCR at 25°C | G29: 5 | H29: mΩ
F30: Peak Inductor Current at VSUPPLY(max) and Full Load | G30: =I.sat_softsaturation -> 3.852272727 | H30: Apk
F31: Peak Inductor Current Limit at VSUPPLY(max) | G31: =I.sat_hardsaturation -> 9.97 | H31: Apk
F32: Estimate Inductor Core Loss at VSUPPLY(typ) | G32: 0.2 | H32: W
F33: Frequency Stretch at VSUPPLY(max) | G33: =IF(t.on_ideal<0.00000006,"can happen", "No") -> No
F34: Dropout Mode Operation at VSUPPLY(min) | G34: =IF(t.off_150<0.0000001,"can happen below "&ROUND(V.supply_dropout,1)&"V","No") -> No
B36: Step 4: Default Componenet Values
F37: VCC Capacitor, CVCC | G37: =C.vcc*1000000 -> 1 | H37: µF
F38: Boot Capacitor, CBOOT1, CBOOT2 | G38: =C.cb1*1000000000 -> 100 | H38: nF
F39: VIN pin Capacitor, CVIN1_HF1, CVIN2_HF1 | G39: =C.vin1_hf1*1000000000 -> 100 | H39: nF
F40: VIN pin Capacitor, CVIN1_HF2, CVIN2_HF2 | G40: =C.vin1_hf2*1000000 -> 10 | H40: µF
F41: Power Good Pull-up Resistor, RPG1, RPG2 | G41: =R.pg1/1000 -> 100 | H41: kΩ
F42: VOSNS Capacitor, CVOSNS | G42: 150 | H42: nF
B43: Step 5: Enable, Line UVLO
F44: Desired Start-up Threshold | G44: 2 | H44: V
F45: UVLO Divider Upper Resistance, RENT | G45: 100 | H45: kΩ
F46: UVLO Divider Lower Resistance, RENB | G46: =Calculation!C90 -> 215 | H46: kΩ
F47: Estimated Shutdown Threshold | G47: =V.shutdown -> 1.465116279 | H47: V
B49: Step 6: Output Capacitors
F50: Desired Undershoot during 50% Load Transient in FPWM | G50: 5 | H50: %
F51: Desired Crossover Frequency | G51: =G12/25 -> 88 | H51: kHz
F52: Minimum Derated Output Capacitance | G52: =C.out_min_calc*1000000 -> 14.4686342 | H52: µF
F53: Rated Output Capacitance | G53: 70 | H53: µF
F54: Derating Factor | G54: 0.3
F55: Derated Output Capacitance | G55: =C.out*1000000 -> 21 | H55: µF
F56: Effective Output Capacitor ESR | G56: 1.3 | H56: mΩ
F57: Estimated Output Voltage Ripple at VSUPPLUY(MAX) | G57: =ΔV.load_pkpk_nph_calc_simple*1000 -> 1.369693679 | H57: mVpk-pk
F58: Estimated Min Overshoot (Full-load to no-load if switching stops) | G58: =ΔV.overshoot_typical_calc/V.load*100 -> 0.5714285714 | H58: %
F59: Estimated Max Undershoot (No-load to full-load in FPWM) | G59: =ΔV.undershoot_typical_calc1/V.load*100 -> 6.501090168 | H59: %
B61: =IF(PH=1,"Step 7: Internal Soft-start time is typically 4.5ms", "Step 7: Soft-start for Multi-phase Config") -> Step 7: Soft-start for Multi-phase Config
F62: =IF(PH=1,"","Minimum Soft-start Capacitance") -> Minimum Soft-start Capacitance | G62: =IF(PH=1,"",C.ss_min*1000000000) -> 0.7783578334 | H62: =IF(PH=1,"","nF") -> nF
F63: =IF(PH=1,"","Soft-start Capacitance") -> Soft-start Capacitance | G63: 1000 | H63: =IF(PH=1,"","nF") -> nF
F64: =IF(PH=1,"","Soft-start Time") -> Soft-start Time | G64: =G63*0.8/(0.00002)/10000 -> 4000 | H64: =IF(PH=1,"","us") -> us
B65: =IF(IntFB=1,"Step 8: Using Internal Feedback","Step 8: Feedback Network") -> Step 8: Feedback Network
F66: Upper Feedback Resistance1, RLP | G66: 0.05 | H66: =IF(IntFB=1,"","kΩ") -> kΩ
F67: Upper Feedback Resistance2, RFBT | G67: 100 | H67: =IF(IntFB=1,"","kΩ") -> kΩ
F68: Feedforward Capacitance, CFF | G68: 10 | H68: =IF(IntFB=1,"","pF") -> pF
F69: Lower Standard Feedback Resistance, RFBB | G69: =R.fb_bot/1000 -> 5.636619718 | H69: =IF(IntFB=1,"","kΩ") -> kΩ
F70: Selected CFF Zero Frequency | G70: =1/(2*3.141592*G67*10^3*G68*10^-12)/1000 -> 159.1549762 | H70: =IF(IntFB=1,"","kHz") -> kHz
B73: =IF(PH=1,"Step 9: Using Internal Loop Compensation","Step 9: External Loop Compensation Design") -> Step 9: External Loop Compensation Design
F74: Desired Maximum RCOMP Value | G74: =R.comp_desired_max/1000 -> 4.9480074 | H74: kΩ
F75: Desired Minimum CCOMP Value | G75: =C.comp_desired_min*1000000000 -> 3.655166876 | H75: nF
F76: Desired CHF Value | G76: =C.hf_desired_min*1000000000000 -> 5.517372508 | H76: pF
F77: Desired Compensation Zero Frequency | G77: =f.ea_zero_desired/1000 -> 8.8 | H77: kHz
F78: Desired Compensation Pole Frequency | G78: =f.ea_pole_desired/1000 -> 5829.852608 | H78: kHz
F79: Selected RCOMP Value | G79: 5.6 | H79: kΩ
F80: Selected CCOMP Value | G80: 3.3 | H80: nF
F81: Selected CHF Value | G81: 200 | H81: pF
F82: Selected Compensation Zero Frequency | G82: =f.ea_zero_estimated/1000 -> 8.612282262 | H82: kHz
F83: Selected Compensation Pole Frequency | G83: =f.ea_pole_estimated/1000 -> 132.1798104 | H83: kHz
B86: Step 9: Power Loss & Thermals
F87: Maximum Ambient Temperature, TAMB_MAX | G87: 35 | H87: °C
F88: Air Flow | G88: 10 | H88: LFM
F89: Estimated Max Junction Temperature, TJ at VSUPPLY(typ) | G89: =Calculation!AO327 -> 97.60372976 | H89: °C
B91: Step 10: Input Capacitors
F92: Input Voltage Ripple Spec | G92: 35 | H92: mVpk-pk
F93: Minimum Derated Input Capacitance, CVIN1_HF2, CVIN2_HF2 | G93: =Calculation!F191 *1000000 -> 10 | H93: µF
F94: Maximum Input Capacitor RMS Current | G94: =Calculation!C194 -> 1.5 | H94: A(rms)
F95: Maximum Input Capacitor ESR | G95: =Calculation!F201 -> 0.7291666667 | H95: mΩ

Sheet Important Notice and Disclaimer

Sheet Calculation (hidden)
A1: Macro should be enabled
D2: User Input
D3: Calc suggestion / User Input /Output
D4: FixedParameters
A6: Definitions
B7: Name | C7: Number | D7: Displayed Unit | E7: multiple | F7: Value | G7: Arial 8pt
B8: π | F8: 3.141592
G9: =Design!G16 -> LM(Q)644A2(-Q1)
A10: Electrical Specifications Mode/Config Selection
B11: Name | C11: Number | D11: Displayed Unit | E11: multiple | F11: Value | G11: Arial 8pt
A12: Min 3.9V | B12: V.supply_min | C12: =Design!G7 -> 24 | E12: 1 | F12: =C12*E12 -> 24
B13: V.supply_typ | C13: =Design!G8 -> 24 | E13: 1 | F13: 24 | G13: =" = "&V.supply_typ&" Vtyp" -> = 24 Vtyp
A14: Max 36V | B14: V.supply_max | C14: =Design!G9 -> 24 | E14: 1 | F14: 24
A15: Min 0.8V, Max 20V | B15: V.load | C15: =Design!G10 -> 15 | E15: 1 | F15: 15 | G15: =" = "&V.load&" V" -> = 15 V
A16: Max 36A | B16: I.load_nph | C16: =Design!G11 -> 12 | E16: 1 | F16: 12
A17: Min 100k, Max 2.2M | B17: f.sw | C17: =Design!G12 -> 2200 | D17: kHz | E17: =1000 -> 1000 | F17: =C17*E17 -> 2200000
B18: P.out | C18: =V.load*I.load_nph -> 180 | E18: 1 | F18: =C18*E18 -> 180
B19: R.load_nph | C19: =V.load/I.load_nph -> 1.25 | E19: 1 | F19: =C19*E19 -> 1.25
A20: Use dropdown menu | B20: I.rated | C20: =IF(Design!G16=STD_VAL!C3,STD_VAL!D3,IF(Design!G16=STD_VAL!C4,STD_VAL!D4,IF(Design!G16=STD_VAL!C5,STD_VAL!D5,444))) -> 6 | E20: 1 | F20: =C20*E20 -> 6 | H20: PH_NEW
A21: Use dropdown menu | B21: PH | C21: =IF(Design!G17=STD_VAL!C8,STD_VAL!D8,IF(Design!G17=STD_VAL!C9,STD_VAL!D9,IF(Design!G17=STD_VAL!C10,STD_VAL!D10,IF(Design!G17=STD_VAL!C11,STD_VAL!D11,444)))) -> 4 | E21: 1 | F21: 4 | H21: =MIN(2,C21) -> 2
A22: Use dropdown menu | B22: FPWM | C22: =IF(Design!G18=STD_VAL!C14,STD_VAL!D14,IF(Design!G18=STD_VAL!C15,STD_VAL!D15,444)) -> 0 | E22: 1 | F22: 0
A23: Use dropdown menu | B23: IntFB | C23: =IF(Design!G19=STD_VAL!C18,STD_VAL!D18,IF(Design!G19=STD_VAL!C19,STD_VAL!D19,444)) -> 0 | E23: 1 | F23: 0
A24: ??????? Should be 1 always | B24: ExtBIAS | C24: 1 | E24: 1 | F24: 1
A25: Use dropdown menu | B25: SPSP | C25: =IF(Design!G20=STD_VAL!C22,STD_VAL!D22,IF(Design!G20=STD_VAL!C23,STD_VAL!D23,444)) -> 1 | E25: 1 | F25: 1
A26: Use dropdown menu | B26: SYNC | C26: =IF(Design!G21=STD_VAL!C26,STD_VAL!D26,IF(Design!G21=STD_VAL!C27,STD_VAL!D27,444)) -> 0 | E26: 1 | F26: 0 | G26: =IF(SYNC=1,"External SYNC Pulse",IF(FPWM=1,"Connect to VCC", "Connect to AGND")) -> Connect to AGND
B27: I.load_1ph | C27: =I.load_nph/PH -> 3 | E27: 1 | F27: 3
B28: R.load_1ph | C28: =V.load/I.load_1ph -> 5 | E28: 1 | F28: 5
A29: Multi-phase effective frequecy | B29: f.sw_nph | C29: =f.sw*PH -> 8800000 | E29: 1 | F29: 8800000
B30: IntEA | C30: =IF(PH=1,1, 0) -> 0 | E30: 1 | F30: =C30*E30 -> 0
B31: RatedIout | C31: =I.rated*PH -> 24 | E31: 1 | F31: 24
A32: Rcfg selection (Recommend both Primary and Secondary if N-phase)
B33: Name | C33: Number | D33: Final Unit | E33: multiple | F33: Value | G33: Arial 8pt
B34: R.cfg_master | C34: =IF(SPSP=0,IF(PH=1,0,IF(PH=2,9.53,IF(PH=4,19.1,IF(PH=6,29.4,4444)))),IF(PH=1,121,IF(PH=2,56.2,IF(PH=4,73.2,IF(PH=6,93.1,4444))))) -> 73.2 | D34: kOhm | E34: 1000 | F34: =C34*E34 -> 73200 | G34: =C34&"kΩ" -> 73,2kΩ
B35: R.cfg_slave | C35: =IF(PH<>1, 41.2, "N/A") -> 41.2 | D35: kOhm | E35: 1000 | F35: =C35*E35 -> 41200 | G35: =C35&"kΩ" -> 41,2kΩ
A37: Rt selection
B38: Name | C38: Number | D38: Final Unit | E38: multiple | F38: Value | G38: Arial 8pt
B39: R.t_calc | C39: =14.925*10^9/(f.sw-20298) -> 6847.266278 | E39: 1 | F39: =C39*E39 -> 6847.266278
B40: R.t_std | C40: =IF(ISNUMBER(R.t_calc/1000),INDEX(STD_VAL!$A$1:$A$769,MATCH(R.t_calc/1000,STD_VAL!$A$1:$A$769)),R.t_calc/1000) -> 6.81 | D40: kOhm | E40: 1000 | F40: =C40*E40 -> 6810 | G40: =C40&"kΩ" -> 6,81kΩ
A42: Lout Inductor selection
B43: Name | C43: Number | D43: Final Unit | E43: multiple | F43: Value | G43: Arial 8pt
B44: RR.desired | C44: 0.35 | E44: 1 | F44: =C44*E44 -> 0.35
A45: B0 =B1 = 0.32 | B45: V.slope_min | C45: 0.32 | E45: 1 | F45: 0.32
A46: B0 = B1 = 0.35 | B46: V.slope_max | C46: 0.35 | E46: 1 | F46: 0.35
B47: I.ncl_th_min | C47: =IF(I.rated=4,2,IF(I.rated=5,2.4,IF(I.rated=6,2.9,4444))) -> 2.9 | E47: 1 | F47: 2.9
B48: I.pcl_th_min | C48: =IF(I.rated=4,6.53,IF(I.rated=5,8.17,IF(I.rated=6,9.8,4444))) -> 9.8 | E48: 1 | F48: 9.8
B49: I.pcl_th_max | C49: =IF(I.rated=4,8.13,IF(I.rated=5,10.17,IF(I.rated=6,12.2,4444))) -> 12.2 | E49: 1 | F49: 12.2
B50: L.out_typical_calc | C50: =(V.supply_typ-V.load)/RR.desired/I.load_1ph*(V.load/V.supply_typ*1/f.sw) -> 2.435064935e-06 | E50: 1 | F50: =C50*E50 -> 2.435064935e-06
B51: Margin | C51: 1.2 | E51: 1 | F51: =C51*E51 -> 1.2
A52: No sub-harmonic OSC | B52: L.out_min1 | C52: =V.load/f.sw*1/11*6/I.rated*1/V.slope_min*1/2*Margin -> 1.162190083e-06 | E52: 1 | F52: =C52*E52 -> 1.162190083e-06
A53: No DCM at VSUPPLY_MAX and full load | B53: L.out_min2 | C53: =(V.supply_max-V.load)/(2*I.load_1ph)*(V.load/V.supply_max*1/f.sw) -> 4.261363636e-07 | E53: 1 | F53: 4.261363636e-07
A54: No negative current limit at VSUPPLY_MAX in FPWM (0 if AUTO) | B54: L.out_min3 | C54: =(V.supply_max-V.load)/(I.ncl_th_min*2)*V.load/(V.supply_max*f.sw) -> 4.40830721e-07 | E54: 1 | F54: 4.40830721e-07
A55: No peak current limit at VSUPPLY_MIN | B55: L.out_min4 | C55: =(V.supply_min-V.load)/(I.pcl_th_min*(1-V.slope_max*V.load/V.supply_min)-I.load_1ph)*(V.load/V.supply_min/f.sw)*Margin -> 6.589383771e-07 | E55: 1 | F55: 6.589383771e-07
B56: L.out_min | C56: =MAX(C52:C55) -> 1.162190083e-06 | E56: 1 | F56: =C56*E56 -> 1.162190083e-06
B57: L.out | C57: =Design!G28 -> 1.5 | D57: uH | E57: =0.000001 -> 1e-06 | F57: =C57*E57 -> 1.5e-06 | G57: =C57&"µH" -> 1,5µH
B58: t.blank_max | C58: 3.5e-08 | E58: 1 | F58: =C58*E58 -> 3.5e-08
A59: Peak inductor current at VSUPPLY_MAX, Minimum Isat for soft saturation core | B59: I.sat_softsaturation | C59: =I.load_1ph+(V.supply_max-V.load)/L.out*V.load/V.supply_max/f.sw/2 -> 3.852272727 | E59: 1 | F59: =C59*E59 -> 3.852272727
A60: Peak current limit at VSUPPLY_MAX, Minimum Isat for ferrite core, use dropdown | B60: I.sat_hardsaturation | C60: =I.pcl_th_max*(1-V.slope_min*V.load/V.supply_max)+t.blank_max*(V.supply_max-V.load)/L.out -> 9.97 | E60: 1 | F60: 9.97
A62: Duty cycle, ton, Toff, Vdropout
B63: Name | C63: Number | D63: Final Unit | E63: multiple | F63: Value | G63: Arial 8pt
A64: 1st 38, 2nd 34 | B64: R.hs_25 | C64: =0.0357 -> 0.0357 | E64: 1 | F64: =C64*E64 -> 0.0357
A65: 1st 35, 2nd 28 | B65: R.ls_25 | C65: =0.0294 -> 0.0294 | E65: 1 | F65: 0.0294
B66: R.dcr_25 | C66: =Design!G29/1000 -> 0.005 | E66: 1 | F66: 0.005
A67: Min 60ns, give a warning.Enters PFM if less than 60ns | B67: t.on_ideal | C67: =V.load/V.supply_max/f.sw -> 2.840909091e-07 | E67: 1 | F67: =C67*E67 -> 2.840909091e-07
A68: Min 100ns, give a warning | B68: t.off_150 | C68: =(1-(V.load+(R.ls_25*2+R.dcr_25*2)*I.load_1ph)/(V.supply_min+(R.ls_25*2-R.hs_25*2)*I.load_1ph))/f.sw -> 1.66091139e-07 | E68: 1 | F68: =C68*E68 -> 1.66091139e-07 | H68: TOFF_SPEC
A69: Give a warning if <Vin_min. Enters dropout if less than TOFF | B69: V.supply_dropout | C69: =(V.load+(R.ls_fullload+R.dcr_fullload)*I.load_1ph)/(1-f.sw*TOFF_SPEC)-(R.ls_fullload-R.hs_fullload)*I.load_1ph -> 18.59029695 | E69: 1 | F69: =C69*E69 -> 18.59029695 | H69: 8e-08
A71: Default values
B72: Name | C72: Number | D72: Final Unit | E72: multiple | F72: Value | G72: Arial 8pt
B73: C.vcc | C73: 1e-06 | E73: 1 | F73: =C73*E73 -> 1e-06
B74: C.cb1 | C74: 1e-07 | E74: 1 | F74: 1e-07
B75: C.cb2 | C75: 1e-07 | E75: 1 | F75: 1e-07
B76: C.vin1_hf2 | C76: =F191 -> 1e-05 | E76: 1 | F76: 1e-05 | G76: =H76&"µF" -> 10µF | H76: =INT(C.vin1_hf2*1000000) -> 10
B77: C.vin2_hf2 | C77: =F191 -> 1e-05 | E77: 1 | F77: 1e-05 | G77: =H77&"µF" -> 10µF | H77: =INT(C.vin1_hf2*1000000) -> 10
B78: C.vin1_hf1 | C78: 1e-07 | E78: 1 | F78: 1e-07
B79: C.vin2_hf1 | C79: 1e-07 | E79: 1 | F79: 1e-07
B80: R.pg1 | C80: 100000 | E80: 1 | F80: 100000
B81: R.pg2 | C81: 100000 | E81: 1 | F81: 100000
A83: EN UVLO
B84: Name | C84: Number | D84: Final Unit | E84: multiple | F84: Value | G84: Arial 8pt
B85: V.en_rising_max | C85: 1.375 | E85: 1 | F85: =C85*E85 -> 1.375
B86: V.en_falling_max | C86: 1 | E86: 1 | F86: 1
B87: V.startup | C87: =Design!G44 -> 2 | E87: 1 | F87: 2
B88: R.en_top | C88: =Design!G45 -> 100 | D88: kOhm | E88: =1000 -> 1000 | F88: 100000 | G88: =C88&"kΩ" -> 100kΩ
B89: R.en_bot_calc | C89: =(V.en_rising_max*R.en_top)/(V.startup-V.en_rising_max) -> 220000 | E89: 1 | F89: =C89*E89 -> 220000
B90: R.en_bot | C90: =IF(ISNUMBER(R.en_bot_calc/1000),INDEX(STD_VAL!$A$1:$A$769,MATCH(R.en_bot_calc/1000,STD_VAL!$A$1:$A$769)),R.en_bot_calc/1000) -> 215 | D90: kOhm | E90: 1000 | F90: =C90*E90 -> 215000 | G90: =C90&"kΩ" -> 215kΩ
B91: V.shutdown | C91: =V.en_falling_max*(R.en_top+R.en_bot)/R.en_bot -> 1.465116279 | E91: 1 | F91: =C91*E91 -> 1.465116279
A93: COUT
B94: Name | C94: Number | D94: Final Unit | E94: multiple | F94: Value | G94: Arial 8pt
A95: Min 4% of Vload not to trigger UV, 50% load transient | B95: ΔV.undershoot_desired | C95: =V.load*Design!G50/100 -> 0.75 | E95: 1 | F95: =C95*E95 -> 0.75
A96: was f.sw/20/1000 | B96: f.cross_desired | C96: =Design!G51 -> 88 | D96: kHZ | E96: 1000 | F96: =C96*E96 -> 88000
A97: Assuming Bulk Cap is aluminum, AL-cap doesn't need a derating by bias voltage , this is for 50% transition | B97: C.out_min_calc | C97: =1/(2*π*f.cross_desired*ΔV.undershoot_desired)*(I.load_nph/2) -> 1.44686342e-05 | E97: 1 | F97: =C97*E97 -> 1.44686342e-05
A98: Rated value | B98: C.out_rated | C98: =Design!G53 -> 70 | D98: uF | E98: 1e-06 | F98: =C98*E98 -> 7e-05 | G98: =H98&"µF" -> 70µF | H98: =INT(C.out_rated*1000000) -> 70
A99: Deating at Vload | B99: Derating.cout | C99: =Design!G54 -> 0.3 | E99: 1 | F99: =C99*E99 -> 0.3
A100: Derated | B100: C.out | C100: =C.out_rated*Derating.cout -> 2.1e-05 | E100: 1 | F100: 2.1e-05
B101: R.esr_cout | C101: =IF(Design!G56<>0, Design!G56/1000,0.0001) -> 0.0013 | E101: 1 | F101: =C101*E101 -> 0.0013
B102: DCatVsupplymax | C102: =V.load/V.supply_max -> 0.625 | E102: 1 | F102: =C102*E102 -> 0.625
B103: DCatPeakRipple | C103: =IF(PH=1,V.load/V.supply_max,IF(PH=2,V.load/V.supply_max,IF(PH=4,0.37,IF(PH=6,0.25,4444)))) -> 0.37 | E103: 1 | F103: 0.37
B104: NPH_Factor.Iout_temp1 | C104: =PH / DCatVsupplymax / (1 - DCatVsupplymax) * (DCatVsupplymax - FLOOR(PH *DCatVsupplymax, 1) / PH) * ((1 + FLOOR(PH * DCatVsupplymax, 1)) / PH - DCatVsupplymax) -> 0.2666666667 | E104: 1 | F104: =C104*E104 -> 0.2666666667
B105: NPH_Factor.Iout_temp2 | C105: =PH / DCatPeakRipple / (1 - DCatPeakRipple) * (DCatPeakRipple - FLOOR(PH *DCatPeakRipple, 1) / PH) * ((1 + FLOOR(PH * DCatPeakRipple, 1)) / PH - DCatPeakRipple) -> 0.2676962677 | E105: 1 | F105: 0.2676962677
B106: NPH_Factor.Iout_rms2 | C106: =MAX(NPH_Factor.Iout_temp1:NPH_Factor.Iout_temp2) -> 0.2676962677 | E106: 1 | F106: 0.2676962677
B107: ΔV.load_pkpk_nph_calc_simple | C107: =(V.supply_max-V.load)/L.out*V.load/V.supply_max/f.sw*SQRT((1/8/f.sw/C.out)^2+(R.esr_cout)^2)*NPH_Factor.Iout_rms2 -> 0.001369693679 | E107: 1 | F107: =C107*E107 -> 0.001369693679
B108: ΔV.overshoot_typical_calc1 | C108: =(-2*V.load+SQRT((2*V.load)^2+4*(L.out*I.load_1ph^2/(C.out/PH))))/2 -> 0.08547077726 | E108: 1 | F108: =C108*E108 -> 0.08547077726
B109: ΔV.overshoot_typical_calc2 | C109: =L.out*I.load_1ph^2/(2*V.load*C.out/PH) -> 0.08571428571 | E109: 1 | F109: 0.08571428571
B110: ΔV.overshoot_typical_calc | C110: =MAX(ΔV.overshoot_typical_calc1,ΔV.overshoot_typical_calc2) -> 0.08571428571 | E110: 1 | F110: =C110*E110 -> 0.08571428571
A111: Max 4% of V.load | B111: ΔV.undershoot_typical_calc1 | C111: =I.load_nph/(2*π*FCROSSOVER_FOUND*C.out) -> 0.9751635252 | E111: 1 | F111: =C111*E111 -> 0.9751635252 | G111: =ΔV.undershoot_typical_calc1/V.load*100 -> 6.501090168
A113: Soft-start (Single output)
B114: Name | C114: Number | D114: Final Unit | E114: multiple | F114: Value | G114: Arial 8pt
B115: I.ss_max | C115: 2.5e-05 | E115: 1 | F115: =C115*E115 -> 2.5e-05
B116: V.ref | C116: 0.8 | E116: 1 | F116: 0.8
B117: t.ss_min | C117: =C.out*V.load/(I.pcl_th_min*(1-V.slope_max*V.load/V.supply_min)+t.blank_max*(V.supply_min-V.load)/L.out-(V.supply_min-V.load)/L.out*V.load/V.supply_min/f.sw-I.load_1ph)/PH -> 2.490745067e-05 | E117: 1 | F117: 2.490745067e-05
B118: C.ss_min | C118: =IF(IntEA=1,"N/A",I.ss_max*t.ss_min/V.ref) -> 7.783578334e-10 | E118: 1 | F118: 7.783578334e-10
B119: C.ss | C119: =Design!G63 -> 1000 | D119: nF | E119: 1e-09 | F119: 1e-06 | G119: =C119&"nF" -> 1000nF
A121: Feedback network
B122: Name | C122: Number | D122: Final Unit | E122: multiple | F122: Value | G122: Arial 8pt
B123: R.fb_top1_int | C123: 41000 | E123: 1 | F123: =C123*E123 -> 41000
B124: R.fb_top2_int | C124: 1563000 | E124: 1 | F124: 1563000
A125: Ideally 6.25E-13 adjusted to 1.25E-13 to match with B0 si | B125: C.fb_top_int | C125: 1.25e-13 | E125: 1 | F125: 1.25e-13
B126: C.fb_bot_int | C126: 8e-13 | E126: 1 | F126: 8e-13
A127: Change to 1ohm | B127: R.fb_top1_ext | C127: =Design!G66*1000 -> 50 | D127: Ohm | E127: 1 | F127: =C127*E127 -> 50
B128: R.fb_top2_ext | C128: =Design!G67 -> 100 | D128: kOhm | E128: 1000 | F128: 100000
A129: Min1fF | B129: C.fb_top_ext | C129: =Design!G68 -> 10 | D129: pF | E129: =0.000000000001 -> 1e-12 | F129: =C129*E129 -> 1e-11
A130: Min 1fF | B130: C.fb_bot_ext | C130: 0 | D130: pF | E130: =0.000000000001 -> 1e-12 | F130: 0
B131: R.fb_top_min | C131: =4000*V.load/V.ref -> 75000 | E131: 1 | F131: 75000
B132: R.fb_top1 | C132: =IF(IntFB=1,R.fb_top1_int,R.fb_top1_ext) -> 50 | E132: 1 | F132: =C132*E132 -> 50 | G132: =C132&"Ω" -> 50Ω
B133: R.fb_top2 | C133: =IF(IntFB=1,R.fb_top2_int,R.fb_top2_ext) -> 100000 | E133: 1 | F133: 100000 | G133: =C133/1000&"kΩ" -> 100kΩ
B134: C.fb_top | C134: =IF(IntFB=1,C.fb_top_int,MAX(C.fb_top_ext,0.0000000000001)) -> 1e-11 | E134: 1 | F134: 1e-11 | G134: =C134*1000000000000&"pF" -> 10pF
B135: C.fb_bot | C135: =IF(IntFB=1,C.fb_bot_int,MAX(C.fb_bot_ext+0.000000000006,0.0000000000001)) -> 6e-12 | E135: 1 | F135: 6e-12
B136: R.fb_top | C136: =R.fb_top1+R.fb_top2 -> 100050 | E136: 1 | F136: 100050
B137: R.fb_bot | C137: =V.ref*R.fb_top/(V.load-V.ref) -> 5636.619718 | E137: 1 | F137: 5636.619718
A138: Min 4k if external FB | B138: R.fb | C138: =R.fb_top2*R.fb_bot/(R.fb_top2+R.fb_bot) -> 5335.85771 | E138: 1 | F138: 5335.85771
B139: R.fb_bot_std | C139: =IF(ISNUMBER(R.fb_bot/1000),INDEX(STD_VAL!$A$1:$A$769,MATCH(R.fb_bot/1000,STD_VAL!$A$1:$A$769)),R.fb_bot/1000) -> 5.62 | D139: kOhm | E139: 1000 | F139: 5620 | G139: =C139&"kΩ" -> 5,62kΩ
A141: IC parasitic (Feedback)
B142: Name | C142: Number | D142: Final Unit | E142: multiple | F142: Value | G142: Arial 8pt
B143: R.fb_buf_int | C143: 1000 | E143: 1 | F143: =C143*E143 -> 1000
B144: C.fb_buf_int | C144: 3.2e-10 | E144: 1 | F144: 3.2e-10
B145: A.fb_buf_int | C145: 1 | E145: 1 | F145: 1
B146: R.fb_buf_ext | C146: 1000 | E146: 1 | F146: 1000
B147: C.fb_buf_ext | C147: =0.00000000032+0.00000000000000265 -> 3.2000265e-10 | E147: 1 | F147: 3.2000265e-10
B148: A.fb_buf_ext | C148: 1 | E148: 1 | F148: 1
B149: R.fb_buf | C149: =IF(IntEA=1,R.fb_buf_int,R.fb_buf_ext) -> 1000 | E149: 1 | F149: =C149*E149 -> 1000
B150: C.fb_buf | C150: =IF(IntEA=1,C.fb_buf_int,C.fb_buf_ext) -> 3.2000265e-10 | E150: 1 | F150: 3.2000265e-10
B151: A.fb_buf | C151: =IF(IntEA=1,A.fb_buf_int,A.fb_buf_ext) -> 1 | E151: 1 | F151: 1
A153: Compensation componeent, Second Feedabck parasitic, COMP filter
B154: Name | C154: Number | D154: Final Unit | E154: multiple | F154: Value | G154: Arial 8pt
B155: R.eaout_int1 | C155: 309000000 | E155: 1 | F155: =C155*E155 -> 309000000
B156: GM.int | C156: 1.45e-05 | E156: 1 | F156: 1.45e-05
B157: R.eaout_ext1 | C157: 473000000 | E157: 1 | F157: 473000000
B158: GM.ext | C158: 0.001 | E158: 1 | F158: 0.001
B159: R.eaout | C159: =IF(IntEA=1,R.eaout_int1,R.eaout_ext1) -> 473000000 | E159: 1 | F159: 473000000
B160: GM | C160: =IF(IntEA=1,GM.int,GM.ext) -> 0.001 | E160: 1 | F160: 0.001
B161: R.comp_desired_max | C161: =1/(V.ref/V.load*GM*11*I.rated/6*PH/(2*π*f.cross_desired*C.out)) -> 4948.0074 | E161: 1 | F161: =C161*E161 -> 4948.0074
B162: C.comp_desired_min | C162: =1/(2*π*f.cross_desired/10*R.comp_desired_max) -> 3.655166876e-09 | E162: 1 | F162: 3.655166876e-09
B163: C.hf_desired_min | C163: =C.out*R.esr_cout/R.comp_desired_max -> 5.517372508e-12 | E163: 1 | F163: 5.517372508e-12
B164: f.ea_zero_desired | C164: =1/(2*π*R.comp_desired_max*C.comp_desired_min) -> 8800 | E164: 1 | F164: 8800
B165: f.ea_pole_desired | C165: =1/(2*π*R.comp_desired_max*C.hf_desired_min) -> 5829852.608 | E165: 1 | F165: 5829852.608
B166: R.comp_int | C166: 960000 | E166: 1 | F166: 960000
B167: C.comp_int | C167: 1.8e-11 | E167: 1 | F167: 1.8e-11
B168: C.hf_int | C168: 1.23e-13 | E168: 1 | F168: 1.23e-13
B169: R.comp_ext | C169: =Design!G79 -> 5.6 | D169: kOhm | E169: 1000 | F169: 5600
B170: C.comp_ext | C170: =Design!G80 -> 3.3 | D170: nF | E170: 1e-09 | F170: 3.3e-09
B171: C.hf_ext | C171: =Design!G81 -> 200 | D171: pF | E171: 1e-12 | F171: 2e-10
B172: R.comp | C172: =IF(IntEA=1,R.comp_int,R.comp_ext) -> 5600 | E172: 1 | F172: 5600 | G172: =C172/1000 -> 5.6
B173: C.comp | C173: =IF(IntEA=1,C.comp_int,C.comp_ext) -> 3.3e-09 | E173: 1 | F173: 3.3e-09 | G173: =C173*1000000000 -> 3.3
A174: =IntEA -> 0 | B174: C.hf | C174: =IF(IntEA=1,C.hf_int,C.hf_ext+0.00000000003) -> 2.3e-10 | E174: 1 | F174: 2.3e-10 | G174: =Design!G81 -> 200
B175: f.ea_zero_estimated | C175: =1/(2*π*R.comp*C.comp) -> 8612.282262 | E175: 1 | F175: 8612.282262
B176: f.ea_pole_estimated | C176: =1/(2*π*R.comp*(C.comp*C.hf/(C.comp+C.hf))) -> 132179.8104 | E176: 1 | F176: 132179.8104 | G176: =0.00000000001 -> 1e-11
A177: Do not show just show graph (actual is greater than this) | B177: f.cross_estimated | C177: =V.ref/V.load*GM*R.comp*11*I.rated/6*PH/(2*π*C.out) -> 99595.64733 | E177: 1 | F177: 99595.64733
B178: COMP.rc_filter_R | C178: 21700 | E178: 1 | F178: =C178*E178 -> 21700
B179: COMP.rc_filter_C | C179: =0.00000000000226 -> 2.26e-12 | E179: 1 | F179: 2.26e-12
B180: A.comp_buffer_int | C180: 0.77 | E180: 1 | F180: 0.77
B181: A.comp_buffer_ext | C181: 1 | E181: 1 | F181: 1
B182: A.comp_buffer | C182: =IF(IntEA=1,A.comp_buffer_int,A.comp_buffer_ext) -> 1 | E182: 1 | F182: 1
A184: Input capacitors
B185: Name | C185: Number | D185: Final Unit | E185: multiple | F185: Value | G185: Arial 8pt
B186: V.in_ripple_required | C186: =Design!G92 -> 35 | E186: 0.001 | F186: =C186*E186 -> 0.035
B187: EffectiveDC | C187: =1-((1-V.load/V.supply_max)*PH-FLOOR((1-V.load/V.supply_max)*PH,1)) -> 0.5
A189: Iout/Number_of_Phases*D1_Vinmax*(1-D1_Vinmax)/(Vinripple1*Fsw) | B189: Cinmin at Vinmax | C189: =I.load_nph/PH*eDC*(1-eDC)/(V.in_ripple_required*f.sw*PH) -> 2.435064935e-06 | E189: 1000000 | F189: =C189*E189 -> 2.435064935
B190: Cinmin at 50%DC | C190: =I.load_nph/PH*0.5*(1-0.5)/(V.in_ripple_required*f.sw*PH) -> 2.435064935e-06 | E190: 1000000 | F190: =C190*E190 -> 2.435064935
B191: Cinmin_required | C191: =MAX(C189,C190,0.00001) -> 1e-05 | E191: 1 | F191: =C191*E191 -> 1e-05
B192: I.ripple_rms at VinMax | C192: =I.load_nph/PH*SQRT(eDC*(1-eDC)) -> 1.5
B193: I.ripple_rms at 50% | C193: =I.load_nph/PH*SQRT(0.5*(1-0.5)) -> 1.5
B194: I.ripple_in | C194: =MAX(C193,C192) -> 1.5
B195: I.ripple_rms at VinMax | C195: =I.load_nph/PH*SQRT(eDC*(1-eDC)) -> 1.5
B196: I.ripple_rms at 50% | C196: =I.load_nph/PH*SQRT(0.5*(1-0.5)) -> 1.5
B197: I.ripple_in | C197: =MAX(C196,C195) -> 1.5
A198: -(Iout/Number_of_Phases*0.5*(1-0.5)/(Cin*Fsw)-Vinripple1)/(Iout/Number_of_Phases+Iripple_Vinmax/2) | B198: Max ESR1 at 50%
A200: Converter input impedance at min VIN -10dB | B200: Max ESR2 for stability | C200: =V.supply_min^2/(V.load*I.load_nph) -> 3.2
B201: Max ESR | C201: =V.in_ripple_required/I.load_nph/PH -> 0.0007291666667 | E201: 1000 | F201: =C201*E201 -> 0.7291666667
B203: =FLOOR(0.9*4,1) -> 3
S211: Global definitions | T211: for efficiecy plot
S212: DC_EFF | T212: =V.load/V.supply_typ -> 0.625 | W212: estimated theta JA at full power
S213: IPKPK_EFF | T213: =(V.supply_typ-V.load)/L.out*V.load/V.supply_typ/f.sw -> 1.704545455 | W213: =AO327/AL327 -> 33.69572071
S214: LFM | T214: =Design!G88 -> 10 | AO214: °
S215: THETA_JA_EFF | T215: =12276/(558+LFM) -> 21.61267606 | V215: 1st 8600_344, 2nd 12143_714, 3rd 11701_509, 4th 12957_617
Q216: Use nly for LDO voltage calculation | S216: T_AMB | T216: =Design!G87 -> 35
Q217: R.hs_fullload | R217: =R.hs_25*(1+0.006*(AO327-25))*2 -> 0.1025034378 | S217: R_HSLS | T217: =R.hs_25*DC_EFF+R.ls_25*(1-DC_EFF) -> 0.0333375
Q218: R.ls_fullload | R218: =R.ls_25*(1+0.006*(AO327-25))*2 -> 0.08441459586 | S218: TR | T218: =V.supply_typ*10^-9/6 -> 4e-09
Q219: R.dcr_fullload | R219: =R.dcr_25*(1+0.005*(AO327-25)) -> 0.006815093244 | S219: TF | T219: =V.supply_typ*10^-9/6 -> 4e-09
S220: TRF | T220: =TR+TF -> 8e-09 | AO220: ="Peak Efficiency = "&ROUND(MAX(AN228:AN327),1)&" %" -> Peak Efficiency = 96,4 %
S221: PCORE | T221: =Design!G32 -> 0.2 | U221: This dominates efficiency at light load. | AO221: ="Full Load Efficiency = "&ROUND(AN327,1)&" %" -> Full Load Efficiency = 96,3 %
S222: CIN_ESR | T222: =0.5 -> 0.5
... 247 more rows

Sheet STD_VAL (hidden)
A1: 1
A2: 1.02 | C2: Device Rating | D2: Value
A3: 1.05 | C3: LM(Q)64480(-Q1) | D3: 4
A4: 1.07 | C4: LM(Q)644A0(-Q1) | D4: 5
A5: 1.1 | C5: LM(Q)644A2(-Q1) | D5: 6
A6: 1.13
A7: 1.15 | C7: Number of Phase | D7: Value
A8: 1.18 | C8: 1-Phase | D8: 1
A9: 1.21 | C9: 2-Phase (1 device) | D9: 2
A10: 1.24 | C10: 4-Phase (2 devices) | D10: 4
A11: 1.27 | C11: 6-Phase (3 devices) | D11: 6
A12: 1.3
A13: 1.33 | C13: Switching Mode | D13: Value
A14: 1.37 | C14: FPWM | D14: 1
A15: 1.4 | C15: AUTO | D15: 0
A16: 1.43
A17: 1.47 | C17: Feedback | D17: Value
A18: 1.5 | C18: Internal | D18: 1
A19: 1.54 | C19: External | D19: 0
A20: 1.58
A21: 1.62 | C21: Spread Spectrum | D21: Value
A22: 1.65 | C22: Enable | D22: 1
A23: 1.69 | C23: Disable | D23: 0
A24: 1.74
A25: 1.78 | C25: External clock synchronization | D25: Value
A26: 1.82 | C26: Yes | D26: 1
A27: 1.87 | C27: No | D27: 0
A28: 1.91
A29: 1.96
A30: 2
A31: 2.05
A32: 2.1
A33: 2.15
A34: 2.21
A35: 2.26
A36: 2.32
A37: 2.37
A38: 2.43
A39: 2.49
A40: 2.55
A41: 2.61
A42: 2.67
A43: 2.74
A44: 2.8
A45: 2.87
A46: 2.94
A47: 3.01
A48: 3.09
A49: 3.16
A50: 3.24
A51: 3.32
A52: 3.4
A53: 3.48
A54: 3.57
A55: 3.65
A56: 3.74
A57: 3.83
A58: 3.92
A59: 4.02
A60: 4.12
A61: 4.22
A62: 4.32
A63: 4.42
A64: 4.53
A65: 4.64
A66: 4.75
A67: 4.87
A68: 4.99
A69: 5.11
A70: 5.23
A71: 5.36
A72: 5.49
A73: 5.62
A74: 5.76
A75: 5.9
A76: 6.04
A77: 6.19
A78: 6.34
A79: 6.49
A80: 6.65
A81: 6.81
A82: 6.98
A83: 7.15
A84: 7.32
A85: 7.5
A86: 7.68
A87: 7.87
A88: 8.06
A89: 8.25
A90: 8.45
A91: 8.66
A92: 8.87
A93: 9.09
A94: 9.31
A95: 9.53
A96: 9.76
A97: =A1*10 -> 10
A98: =A2*10 -> 10.2
A99: 10.5
A100: 10.7
A101: 11
A102: 11.3
A103: 11.5
A104: 11.8
A105: 12.1
A106: 12.4
A107: 12.7
A108: 13
A109: 13.3
A110: 13.7
A111: 14
A112: 14.3
A113: 14.7
A114: 15
A115: 15.4
A116: 15.8
A117: 16.2
A118: 16.5
A119: 16.9
A120: 17.4
A121: 17.8
A122: 18.2
A123: 18.7
A124: 19.1
A125: 19.6
A126: 20
A127: 20.5
A128: 21
A129: 21.5
A130: 22.1
A131: 22.6
A132: 23.2
A133: 23.7
A134: 24.3
A135: 24.9
A136: 25.5
A137: 26.1
A138: 26.7
A139: 27.4
A140: 28
A141: 28.7
A142: 29.4
A143: 30.1
A144: 30.9
A145: 31.6
A146: 32.4
A147: 33.2
A148: 34
A149: 34.8
A150: 35.7
A151: 36.5
A152: 37.4
A153: 38.3
A154: 39.2
A155: 40.2
A156: 41.2
A157: 42.2
A158: 43.2
A159: 44.2
A160: 45.3
A161: 46.4
A162: =A66*10 -> 47.5
A163: 48.7
A164: 49.9
A165: 51.1
A166: 52.3
A167: 53.6
A168: 54.9
A169: 56.2
A170: 57.6
A171: 59
A172: 60.4
A173: 61.9
A174: 63.4
A175: 64.9
A176: 66.5
A177: 68.1
A178: 69.8
A179: 71.5
A180: 73.2
A181: 75
A182: 76.8
A183: 78.7
A184: 80.6
A185: 82.5
A186: 84.5
A187: 86.6
A188: 88.7
A189: 90.9
A190: 93.1
A191: 95.3
A192: 97.6
A193: 100
A194: 102
A195: 105
A196: 107
A197: 110
A198: 113
A199: 115
A200: 118
... 569 more rows

Sheet SCH (hidden)
B1: =IF(PH=1,IF(AND(IntFB=1,V.load=5),"SCH_1PH_5V",IF(AND(IntFB=1,V.load=3.3),"SCH_1PH_3P3V",IF(IntFB=0,"SCH_1PH_ADJ",444))),IF(PH=2,IF(AND(IntFB=1,V.load=5),"SCH_2PH_5V",IF(AND(IntFB=1,V.load=3.3),"SCH_2PH_3P3V",IF(IntFB=0,"SCH_2PH_ADJ",444))),IF(PH=4,IF(AND(IntFB=1,V.load=5),"SCH_4PH_5V",IF(AND(IntFB=1,V.load=3.3),"SCH_4PH_3P3V",IF(IntFB=0,"SCH_4PH_ADJ",444))),IF(PH=6,IF(AND(IntFB=1,V.load=5),"SCH_6PH_5V",IF(AND(IntFB=1,V.load=3.3),"SCH_6PH_3P3V",IF(IntFB=0,"SCH_6PH_ADJ",444))),444)) ) ) -> SCH_4PH_ADJ | C1: =IF(PH=4,"SCH_4PH_SLAVE",IF(PH=6,"SCH_6PH_SLAVE","SCH_BLANK")) -> SCH_4PH_SLAVE | D1: =IF(PH=6,"SCH_6PH_SLAVE2","SCH_BLANK") -> SCH_BLANK
